bitfinex/quotes_ETHUSD_20250329
["timestamp","ask_amount","ask_price","bid_price","bid_amount"]
[1743272341766,3.67939531,1819.8,1819.0,12.297529]
[1743272341968,5.78120929,1820.0,1819.6,5.4956]
[1743272342263,0.28657929,1820.0,1819.6,5.49571]
[1743272342433,5.49369,1820.3,1819.9,5.49456]
[1743272342632,5.49314,1820.5,1819.8,5.49509]
[1743272342633,5.49406,1820.2,1819.8,5.49509]
[1743272342843,0.55,1820.1,1819.7,0.9729]
[1743272343162,5.49511,1819.8,1819.6,10.18]
[1743272343367,6.04491,1819.9,1819.6,10.18]
[1743272343567,3.0,1819.7,1819.6,10.18]
[1743272344430,0.55,1819.7,1819.3,10.18]
[1743272344759,3.55,1819.7,1819.3,5.49661]
[1743272345164,9.45683258,1819.7,1819.3,5.49661]
[1743272345375,3.0,1819.5,1819.2,11.1529]
[1743272345578,5.49642,1819.4,1819.1,6.059]
[1743272345874,3.0,1819.6,1819.2,5.49684]
[1743272346098,3.0,1819.6,1819.3,10.993]
[1743272346279,3.0,1819.6,1819.3,5.49631]
[1743272346449,8.49587,1819.6,1819.2,5.49679]
[1743272346888,3.0,1819.6,1819.3,5.49656]
[1743272347101,3.67939531,1820.0,1819.3,1.099335]
[1743272347249,5.49372,1820.3,1819.9,5.49467]
[1743272347585,5.4939,1820.2,1819.8,6.50166]
[1743272347788,3.0,1820.1,1819.8,22.17654]
[1743272348462,5.4939,1820.2,1819.8,16.68148]
[1743272348663,3.0,1820.1,1819.8,22.17638]
[1743272348861,0.4222069,1820.3,1819.8,16.68148]
[1743272349065,3.0,1820.1,1819.8,16.68148]
[1743272349263,5.49403,1820.2,1819.8,16.68148]
[1743272349503,3.0,1820.3,1819.9,10.18]
[1743272349677,3.0,1820.3,1820.0,5.49423]
[1743272349853,3.0,1820.3,1819.9,10.18]
[1743272349854,0.55,1820.4,1820.1,5.49401]
[1743272350053,0.41075905,1820.7,1820.2,10.18]
[1743272350284,5.49239,1820.7,1820.4,5.49329]
[1743272350549,5.49239,1820.7,1820.3,15.67333]
[1743272350550,10.98507,1820.7,1820.3,15.67333]
[1743272350949,3.0,1820.6,1820.3,15.67333]
[1743272351146,5.49273,1820.6,1820.3,10.18]
[1743272351455,3.0,1820.5,1820.3,10.18]
[1743272351877,3.0,1820.5,1820.3,15.67343]
[1743272352189,3.0,1820.5,1820.3,10.18]
[1743272353483,3.0,1820.5,1820.3,15.67346]
[1743272353688,11.3964706,1820.7,1820.4,5.49303]
[1743272353689,3.4114506,1820.7,1820.4,5.49303]
[1743272353991,8.9039706,1820.7,1820.3,17.890965]
[1743272354191,5.9039706,1820.7,1820.3,17.890965]
[1743272354606,5.49119,1821.1,1820.6,1.0066]
[1743272354773,0.41322677,1820.9,1820.6,10.18]
[1743272354964,5.49239,1820.7,1820.6,10.18]
[1743272355164,13.656412,1820.7,1820.4,16.234]
[1743272355366,5.49299,1820.5,1820.4,10.18]
[1743272355565,5.4929,1820.6,1820.4,10.18]
[1743272356091,5.49216,1820.8,1820.4,17.69765]
[1743272356307,5.49269,1820.6,1820.4,10.18]
[1743272356511,5.49299,1820.5,1820.4,10.18]
[1743272357010,8.49299,1820.5,1820.4,10.18]
[1743272357304,5.49376,1820.3,1820.1,10.18]
[1743272357480,5.49376,1820.3,1820.0,10.18]
[1743272357992,10.98756,1820.3,1820.0,10.18]
[1743272358386,3.0,1820.3,1820.0,15.6744]
[1743272359376,5.4928,1820.6,1820.1,6.57172965]
[1743272359583,5.4928,1820.6,1820.1,1.0226]
[1743272359584,5.49301,1820.5,1820.1,1.0226]
[1743272359886,3.0,1820.4,1820.1,6.51665]
[1743272360501,3.0,1820.4,1820.1,16.69665]
[1743272360719,3.0,1820.6,1820.4,5.49316]
[1743272360869,5.49144,1821.1,1820.5,11.2026]
[1743272361069,5.49162,1821.0,1820.6,15.67262]
[1743272361389,3.0,1820.9,1820.6,15.67262]
[1743272361771,3.0,1820.9,1820.6,15.67251]
[1743272361988,5.49161,1821.0,1820.7,1.567251]
[1743272362203,5.49161,1821.0,1820.6,5.49241]
[1743272362384,3.0,1820.9,1820.6,10.98497]
[1743272362804,3.0,1821.0,1820.7,5.49238]
[1743272363022,3.0,1821.0,1820.7,5.49223]
[1743272363324,10.98325,1821.0,1820.5,22.18837]
[1743272363519,3.0,1821.1,1820.6,7.711337]
[1743272363690,5.49169,1821.0,1820.6,7.711337]
[1743272363891,5.49182,1820.9,1820.6,2.218837]
[1743272364406,5.49169,1821.0,1820.6,7.711487]
[1743272364591,5.49169,1821.0,1820.6,7.76640966]
[1743272364792,8.49121,1821.1,1820.7,6.26890097]
[1743272365090,3.67939531,1821.2,1820.9,1.0226]
[1743272365091,5.49092,1821.2,1820.9,1.0226]
[1743272365394,3.0,1821.1,1820.9,11.2026]
[1743272365805,8.49137,1821.1,1820.9,10.18]
[1743272365996,13.98279,1821.1,1820.9,10.18]
[1743272366193,13.98279,1821.1,1820.9,11.198]
[1743272366703,5.49148,1821.0,1820.9,10.18]
[1743272367703,8.49137,1821.1,1820.9,10.18]
[1743272367880,3.0,1821.1,1820.9,10.18]
[1743272368081,8.49138,1821.1,1820.9,10.18]
[1743272368587,3.0,1821.2,1820.9,10.18]
[1743272368906,8.49109,1821.2,1820.9,11.198]
[1743272369084,8.49107,1821.2,1820.9,11.198]
[1743272369280,3.0,1821.2,1821.0,5.49138]
[1743272369499,9.16916531,1821.6,1821.1,6.51374]
[1743272369701,5.49016,1821.5,1821.2,5.4908]
[1743272370012,5.49028,1821.4,1821.1,16.69374]
[1743272370179,5.49028,1821.4,1821.1,18.363114]
[1743272370385,8.49001,1821.5,1821.1,18.363114]
[1743272370585,5.49029,1821.4,1821.1,12.871974]
[1743272371780,3.0,1821.5,1821.1,12.871974]
[1743272372080,3.0,1821.2,1821.1,10.18]
[1743272373093,3.0,1821.5,1821.2,5.49066]
[1743272373816,8.49002,1821.5,1821.2,5.49066]
[1743272373987,8.49002,1821.5,1821.1,15.67116]
[1743272373988,13.9802,1821.5,1821.1,15.67116]
[1743272374188,8.49002,1821.5,1821.1,21.16216]
[1743272374514,0.42066612,1821.6,1821.2,17.786836]
[1743272374713,10.9792,1821.7,1821.3,16.70045]
[1743272375016,0.40621335,1821.9,1821.4,10.23490106]
[1743272375217,3.96640162,1822.3,1821.8,5.4888]
[1743272375519,5.48844,1822.1,1821.8,10.18]
[1743272375695,10.97688,1822.1,1821.8,10.18]
[1743272376021,10.97688,1822.1,1821.9,10.18]
[1743272376022,3.0,1822.1,1821.9,10.18]
[1743272376219,5.48792,1822.2,1821.9,10.18]
[1743272376389,5.48743,1822.4,1821.9,10.23488381]
[1743272376583,5.48743,1822.4,1822.1,1.03]
[1743272376805,3.0,1822.4,1822.1,1.03]
[1743272377014,5.48779,1822.3,1822.1,1.03]
[1743272377315,5.48772,1822.3,1822.1,1.03]
[1743272377511,5.48735,1822.4,1822.1,1.03]
[1743272377719,3.0,1822.4,1822.1,2.80219084]
[1743272377903,8.48729,1822.4,1822.1,2.80219084]
[1743272378084,5.48729,1822.4,1822.1,12.98219084]
[1743272378631,8.48729,1822.4,1822.1,12.98219084]
[1743272379219,5.48729,1822.4,1822.1,12.98219084]
[1743272379516,3.0,1822.4,1822.1,12.98219084]
[1743272379823,3.40786496,1822.5,1822.2,1.29821908]
[1743272380114,3.40786496,1822.5,1822.2,11.47821908]
[1743272380308,5.48744,1822.4,1822.2,11.47821908]
[1743272380916,8.48757,1822.3,1822.2,10.18]
[1743272383935,5.48787,1822.2,1822.1,10.18]
[1743272384851,8.48757,1822.3,1822.1,10.18]
[1743272385028,0.11317831,1822.2,1822.1,10.18]
[1743272386053,5.60104831,1822.2,1822.1,10.18]
[1743272386256,0.11317831,1822.2,1822.1,10.18]
[1743272387751,5.60104831,1822.2,1822.1,10.18]
[1743272388334,8.60104831,1822.2,1822.1,10.18]
[1743272388865,0.11317831,1822.2,1822.1,10.18]
[1743272389066,0.11317831,1822.2,1822.1,17.783823]
[1743272389276,0.11317831,1822.2,1822.1,18.813823]
[1743272389774,0.11317831,1822.2,1822.1,13.325653]
[1743272391665,8.60104831,1822.2,1822.1,10.18]
[1743272391837,11.41697831,1822.2,1822.1,10.18]
[1743272392043,8.60104831,1822.2,1822.1,10.18]
[1743272394179,3.11317831,1822.2,1822.1,10.18]
[1743272394787,3.11317831,1822.2,1822.1,15.66817]
[1743272394988,3.11317831,1822.2,1822.1,18.207587]
[1743272395294,0.11317831,1822.2,1822.1,18.207587]
[1743272395588,3.0,1822.4,1822.1,18.207587]
[1743272395749,0.1130793,1822.2,1822.1,18.207587]
[1743272395948,3.0,1822.4,1822.1,18.207587]
[1743272396289,0.11312881,1822.3,1822.1,18.207587]
[1743272396588,3.0,1822.4,1822.1,18.207587]
[1743272396889,0.11312881,1822.2,1822.1,18.207587]
[1743272397069,9.02158231,1822.3,1822.1,12.719417]
[1743272397390,0.11312881,1822.2,1822.1,10.18]
[1743272397571,3.11312881,1822.2,1822.1,10.18]
[1743272400673,8.60099881,1822.2,1822.1,10.18]
[1743272401545,5.48817,1822.1,1822.0,10.18]
[1743272401746,7.6614086,1822.1,1822.0,10.18]
[1743272401946,0.11298029,1822.1,1822.0,10.18]
[1743272402148,3.0,1822.2,1822.0,10.18]
[1743272402349,3.6469626,1822.1,1822.0,10.18]
[1743272402759,9.1351326,1822.1,1822.0,10.18]
[1743272402960,15.7242316,1822.1,1822.0,10.18]
[1743272403264,5.48989,1821.6,1821.4,10.18]
[1743272403483,8.48989,1821.6,1821.5,10.18]
[1743272403676,12.02387231,1821.6,1821.5,10.18]
[1743272404378,5.49099,1821.2,1821.0,0.9726]
[1743272404681,3.53398231,1821.3,1821.0,10.18]
[1743272404975,3.53398231,1821.9,1821.6,6.49647]
[1743272405162,3.0,1821.8,1821.7,5.48914]
[1743272405367,3.0,1821.8,1821.7,10.18]
[1743272405575,8.48907,1821.8,1821.7,10.18]
[1743272405778,3.0,1821.8,1821.7,10.18]
[1743272405977,3.0,1821.8,1821.7,11.198]
[1743272406278,11.474819,1821.8,1821.7,10.18]
[1743272406457,8.48907,1821.8,1821.7,10.18]
[1743272408896,3.0,1821.8,1821.7,10.18]
[1743272409986,8.48907,1821.8,1821.7,10.18]
[1743272410787,13.21679517,1821.8,1821.7,10.18]
[1743272411355,13.21679517,1821.8,1821.2,10.18]
[1743272411356,5.49035,1821.4,1821.2,10.18]
[1743272411590,8.49035,1821.4,1821.3,10.18]
[1743272412371,3.0,1821.4,1821.3,10.18]
[1743272412957,5.49114,1821.2,1821.0,10.18]
[1743272413598,8.49118,1821.1,1821.0,10.18]
[1743272413761,8.49148,1821.0,1820.9,10.18]
[1743272414109,8.49209,1820.8,1820.7,10.18]
[1743272414311,8.49209,1820.8,1820.6,10.18]
[1743272414312,12.67011517,1820.7,1820.6,10.18]
[1743272414462,12.67011517,1820.7,1820.1,5.49419]
[1743272414463,8.49299,1820.5,1820.4,10.18]
[1743272414811,8.49313,1820.5,1820.2,10.18]
[1743272414950,3.0,1820.5,1820.2,11.198]
[1743272415157,8.49359,1820.3,1820.2,10.18]
[1743272415983,3.0,1820.2,1820.1,10.18]
[1743272416179,2.226093,1820.2,1820.1,10.18]
[1743272416381,5.226093,1820.2,1820.1,10.18]
[1743272416586,3.0,1820.2,1820.1,10.18]
[1743272416785,8.4939,1820.2,1820.1,10.18]
[1743272417166,5.4942,1820.1,1820.0,1.0068]
[1743272417366,5.4942,1820.1,1819.9,10.18]
[1743272417367,3.0,1820.0,1819.9,10.18]
[1743272417570,3.0,1820.2,1819.9,10.18]
[1743272417771,3.40943778,1820.4,1820.1,5.49418]
[1743272418074,0.40943778,1820.4,1820.0,6.50122]
[1743272418271,3.0,1820.2,1820.0,1.0068]
[1743272418466,5.49408,1820.2,1819.9,10.18]
[1743272418669,3.0,1820.2,1819.9,15.67479]
[1743272418867,3.0,1820.2,1820.0,5.49445]
[1743272419075,5.4933,1820.4,1820.0,5.49445]
[1743272419076,3.0,1820.3,1820.0,5.49445]
[1743272419272,8.49361,1820.3,1819.9,15.67479]
[1743272420389,5.49391,1820.2,1819.9,10.18]
[1743272420771,10.98804,1820.2,1819.9,10.18]
[1743272421290,5.49391,1820.2,1819.9,10.18]
[1743272421588,3.0,1820.3,1819.9,15.67462]
[1743272421905,6.029,1820.8,1819.7,1.0068]
[1743272421906,4.17772517,1821.1,1820.2,0.9495]
[1743272422210,4.17772517,1821.1,1820.7,6.44165]
[1743272422211,8.49129,1821.1,1820.7,6.44165]
[1743272422359,5.49129,1821.1,1820.8,10.18]
[1743272422554,10.98274,1821.1,1820.8,10.18]
[1743272422759,5.49178,1820.9,1820.8,10.18]
[1743272422961,5.49153,1821.0,1820.8,10.18]
[1743272423261,8.49178,1820.9,1820.8,10.18]
[1743272423590,3.0,1820.9,1820.8,10.18]
[1743272424294,8.49178,1820.9,1820.8,10.18]
[1743272424594,14.11225756,1820.9,1820.8,10.18]
[1743272424783,14.66225756,1820.9,1820.8,10.18]
[1743272425384,8.49269,1820.6,1820.5,10.18]
[1743272425694,8.49349,1820.4,1820.2,10.18]
[1743272426006,3.0,1820.3,1820.2,10.18]
[1743272426682,17.114541,1820.3,1820.2,10.18]
[1743272426889,8.49359,1820.3,1820.2,10.18]
[1743272427069,8.91279668,1820.3,1820.2,10.18]
[1743272427466,3.41920668,1820.3,1820.2,10.18]
[1743272428293,8.91279668,1820.3,1820.2,10.18]
[1743272428678,3.0,1820.3,1820.2,10.18]
[1743272428864,3.0,1820.3,1820.2,12.1475]
[1743272429285,3.0,1820.3,1820.2,17.6414]
[1743272430296,3.0,1820.3,1820.2,16.6234]
[1743272431169,0.55,1820.8,1820.2,16.6234]
[1743272431170,4.18363021,1820.9,1820.5,5.49295]
[1743272431495,0.23463011,1820.8,1820.6,10.2349258]
[1743272431670,11.21919011,1820.8,1820.6,10.18]
[1743272431873,11.21923011,1820.8,1820.6,10.18]
[1743272432181,5.72690011,1820.8,1820.6,10.18]
[1743272432404,5.72690011,1820.8,1820.6,16.69053]
[1743272432405,0.23463011,1820.8,1820.6,16.69053]
[1743272432593,3.0,1820.9,1820.6,22.18308]
[1743272432796,0.23522529,1820.8,1820.6,16.69053]
[1743272434113,0.23522529,1820.8,1820.6,10.18]
[1743272434320,5.49239,1820.7,1820.6,10.18]
[1743272434494,0.23522529,1820.7,1820.6,10.18]
[1743272435016,5.72761529,1820.7,1820.6,10.18]
[1743272435213,9.9112455,1820.7,1820.6,10.18]
[1743272435420,5.49269,1820.6,1820.5,10.18]
[1743272435618,6.04269,1820.6,1820.5,10.18]
[1743272435788,5.4942,1820.1,1820.0,9.96875773]
[1743272436319,0.23552285,1820.1,1820.0,9.96875773]
[1743272436694,5.49402,1820.2,1820.0,9.96875773]
[1743272436893,0.23552285,1820.1,1820.0,9.96875773]
[1743272437095,5.72972285,1820.1,1820.0,9.96875773]
[1743272437415,8.98881213,1820.1,1820.0,9.96875773]
[1743272438408,0.23552285,1820.1,1820.0,9.96875773]
[1743272439111,5.4942,1820.1,1820.0,9.96875773]
[1743272439424,5.72972285,1820.1,1820.0,9.96875773]
[1743272439917,0.23552285,1820.1,1820.0,9.96875773]
[1743272441196,5.72972285,1820.1,1820.0,9.96875773]
[1743272441795,7.26389899,1820.1,1820.0,9.96875773]
[1743272442320,1.76969899,1820.1,1820.0,9.96875773]
[1743272442636,12.75839899,1820.1,1819.8,9.96875773]
[1743272443040,0.23552285,1820.1,1819.8,15.46371773]
[1743272443703,5.72973285,1820.1,1819.8,15.46371773]
[1743272444321,5.4948,1819.9,1819.8,9.96875773]
[1743272444693,9.6931563,1819.9,1819.8,9.96875773]
[1743272446407,5.49618,1819.5,1819.2,9.96875773]
[1743272446634,0.22976731,1819.4,1819.3,9.96875773]
[1743272448222,3.0,1819.6,1819.3,9.96875773]
[1743272448223,8.49582,1819.6,1819.3,9.96875773]
[1743272448428,0.22976731,1819.4,1819.3,9.96875773]
[1743272448629,5.9124963,1819.9,1819.3,9.96875773]
[1743272448630,4.46997797,1820.3,1819.4,5.49631]
[1743272448830,5.49372,1820.3,1819.9,6.52533]
[1743272449127,8.4942,1820.1,1820.0,9.96875773]
[1743272449494,5.49391,1820.2,1820.0,9.96875773]
[1743272449495,5.91287231,1820.2,1820.0,9.96875773]
[1743272449695,5.4942,1820.1,1820.0,9.96875773]
[1743272450129,8.4942,1820.1,1820.0,9.96875773]
[1743272450325,13.83116023,1820.1,1820.0,9.96875773]
[1743272450528,8.4942,1820.1,1820.0,9.96875773]
[1743272451528,3.0,1820.1,1820.0,9.96875773]
[1743272451734,5.49272,1820.6,1820.1,6.48945]
[1743272452030,5.49272,1820.6,1820.1,6.48942]
[1743272452196,5.49282,1820.6,1820.2,15.46244773]
[1743272452393,9.67604021,1820.7,1820.2,15.46244773]
[1743272452598,3.0,1820.6,1820.3,15.46224773]
[1743272452810,5.49241,1820.7,1820.3,15.46224773]
[1743272453005,5.49241,1820.7,1820.3,15.46210773]
[1743272453206,10.98442,1820.8,1820.4,16.45742773]
[1743272453429,8.49242,1820.7,1820.4,10.96415773]
[1743272453612,5.49285,1820.6,1820.4,10.96415773]
[1743272453811,3.0,1820.8,1820.4,10.96415773]
[1743272453812,5.49247,1820.7,1820.4,10.96415773]
[1743272454017,8.49247,1820.7,1820.4,10.96415773]
[1743272454534,3.0,1820.5,1820.4,10.96415773]
[1743272455002,5.49247,1820.7,1820.4,10.96415773]
[1743272455402,8.4921,1820.8,1820.4,16.45728773]
[1743272455615,3.0,1820.8,1820.4,10.96415773]
[1743272455932,4.58984302,1820.9,1820.5,9.96875773]
[1743272456129,0.40621281,1820.9,1820.6,5.49246]
[1743272456327,3.0,1820.9,1820.7,9.96875773]
[1743272456701,8.49183,1820.9,1820.7,9.96875773]
[1743272456901,5.49209,1820.8,1820.7,9.96875773]
[1743272457103,11.62411221,1820.8,1820.7,9.96875773]
[1743272460198,5.49269,1820.6,1820.5,9.96875773]
[1743272461435,3.0,1820.7,1820.5,9.96875773]
[1743272461604,3.4037019,1820.9,1820.7,5.49218]
[1743272461937,8.8956019,1820.9,1820.5,15.46161773]
[1743272462105,0.18151133,1820.8,1820.5,20.95443773]
[1743272462437,0.18151133,1820.8,1820.5,15.46157773]
[1743272462605,0.18151133,1820.8,1820.6,10.02367984]
[1743272462934,6.71098759,1821.3,1820.9,5.49164]
[1743272463103,1.22020759,1821.3,1821.2,5.49088]
[1743272463304,1.22020759,1821.3,1821.2,9.96875773]
[1743272463645,3.0,1821.4,1821.2,9.96875773]
[1743272464007,10.98027,1821.5,1821.2,9.96875773]
[1743272464211,8.49058,1821.3,1821.2,9.96875773]
[1743272464809,9.04058,1821.3,1821.2,9.96875773]
[1743272465015,8.49118,1821.1,1821.0,9.96875773]
[1743272467311,3.0,1821.1,1821.0,9.96875773]
[1743272467512,8.49118,1821.1,1821.0,9.96875773]
[1743272467811,9.31046359,1821.1,1821.0,9.96875773]
[1743272468132,9.04209,1820.8,1820.7,9.96875773]
[1743272468332,9.04299,1820.5,1820.4,9.96875773]
[1743272468632,5.4942,1820.1,1820.0,9.96875773]
[1743272468836,8.4942,1820.1,1820.0,9.96875773]
[1743272469034,3.0,1820.1,1820.0,15.46325773]
[1743272469222,3.0,1820.1,1820.0,9.96875773]
[1743272470207,3.0,1820.4,1820.0,9.96875773]
[1743272470412,5.4931,1820.5,1820.1,15.46276773]
[1743272470611,5.4931,1820.5,1820.2,9.96875773]
[1743272471052,10.98633,1820.5,1820.2,9.96875773]
[1743272471234,5.49329,1820.4,1820.2,9.96875773]
[1743272471643,5.49359,1820.3,1820.2,9.96875773]
[1743272473043,6.0442,1820.1,1820.0,9.96875773]
[1743272473246,3.0,1819.8,1819.7,9.96875773]
[1743272473561,7.18363021,1820.0,1819.7,9.96875773]
[1743272473839,3.0,1820.0,1819.7,20.95927773]
[1743272474142,8.49462,1820.0,1819.7,9.96875773]
[1743272474328,3.0,1820.0,1819.7,15.5190469]
[1743272474514,8.49453,1820.0,1819.7,9.96875773]
[1743272474843,3.0,1820.0,1819.7,15.46393773]
[1743272475216,3.42010347,1820.0,1819.7,9.96875773]
[1743272475541,8.49472,1820.0,1819.7,9.96875773]
[1743272475726,8.49492,1819.9,1819.7,9.96875773]
[1743272475936,3.0,1819.9,1819.7,9.96875773]
[1743272476611,3.0,1820.3,1820.0,5.49442]
[1743272476937,5.49242,1820.7,1820.3,5.49337]
[1743272477107,5.4925,1820.7,1820.4,10.91315773]
[1743272477323,3.0,1820.6,1820.4,10.91315773]
[1743272477524,3.41576441,1820.7,1820.4,16.40628773]
[1743272477751,5.49274,1820.6,1820.4,10.91315773]
[1743272478055,3.0,1820.8,1820.4,17.4977535]
[1743272478056,10.98457,1820.8,1820.4,17.4977535]
[1743272478254,4.18363021,1820.9,1820.4,10.91315773]
[1743272478460,8.49299,1820.5,1820.4,9.96875773]
[1743272479049,3.0,1820.5,1820.4,9.96875773]
[1743272480457,8.49299,1820.5,1820.4,9.96875773]
[1743272480655,13.22662021,1820.5,1820.4,9.96875773]
[1743272480956,19.60533121,1820.5,1820.4,9.96875773]
[1743272481630,13.22662021,1820.5,1820.4,9.96875773]
[1743272481831,16.75596221,1820.5,1820.4,9.96875773]
[1743272482656,15.47276121,1820.5,1820.4,9.96875773]
[1743272482956,5.49222,1820.8,1820.4,16.43434773]
[1743272483357,10.9846,1820.8,1820.4,16.43434773]
[1743272483576,3.0,1820.7,1820.4,16.43434773]
[1743272483756,3.0,1820.7,1820.4,18.6271275]
[1743272483960,3.0,1820.7,1820.4,13.1338375]
[1743272484157,5.49243,1820.7,1820.4,13.1338375]
[1743272484458,3.0,1820.7,1820.4,18.6271075]
[1743272484959,4.18363021,1820.9,1820.4,13.1338375]
[1743272485158,5.49088,1821.2,1820.6,0.9723]
[1743272485359,5.49209,1820.8,1820.7,9.96875773]
[1743272485560,8.49209,1820.8,1820.7,9.96875773]
[1743272485758,9.04209,1820.8,1820.7,9.96875773]
[1743272486266,12.895512,1820.8,1820.7,9.96875773]
[1743272486464,8.49209,1820.8,1820.7,9.96875773]
[1743272486633,13.698543,1820.8,1820.7,9.96875773]
[1743272486838,8.49209,1820.8,1820.7,9.96875773]
[1743272487236,9.04209,1820.8,1820.7,9.96875773]
[1743272487768,11.361173,1820.8,1820.7,9.96875773]
[1743272488469,12.172585,1820.8,1820.7,9.96875773]
[1743272489065,5.49299,1820.5,1820.4,9.96875773]
[1743272489266,23.51744821,1820.5,1820.4,9.96875773]
[1743272489569,13.83091921,1820.5,1820.4,9.96875773]
[1743272490370,8.49299,1820.5,1820.4,9.96875773]
[1743272490666,12.67662021,1820.5,1820.4,9.96875773]
[1743272490841,15.10013821,1820.5,1820.4,9.96875773]
[1743272491635,9.67662021,1820.5,1820.4,9.96875773]
[1743272491958,10.22662021,1820.5,1820.4,9.96875773]
[1743272492158,11.96177493,1820.5,1820.4,9.96875773]
[1743272493168,0.1632237,1820.5,1820.4,9.96875773]
[1743272493468,5.49299,1820.5,1820.4,9.96875773]
[1743272493669,5.65566598,1820.5,1820.4,9.96875773]
[1743272493868,0.16267598,1820.5,1820.4,9.96875773]
[1743272494074,1.21992144,1820.9,1820.5,10.75888175]
[1743272494255,0.27952781,1821.6,1820.8,6.44489]
[1743272494256,0.40705999,1821.4,1820.8,6.44489]
[1743272494568,5.48914,1821.8,1821.4,5.49001]
[1743272494742,5.48946,1821.7,1821.5,9.80608175]
[1743272494948,5.48967,1821.6,1821.5,9.80608175]
[1743272495370,9.67309021,1821.7,1821.5,9.80608175]
[1743272495782,5.48946,1821.7,1821.5,9.80608175]
[1743272495957,3.0,1821.7,1821.5,10.78668993]
[1743272496163,5.89267003,1821.8,1821.6,0.9616]
[1743272496470,5.48921,1821.8,1821.6,0.9616]
[1743272496673,10.97854,1821.8,1821.6,0.9616]
[1743272496853,3.0,1821.7,1821.6,0.9616]
[1743272497053,5.48921,1821.8,1821.6,0.9616]
[1743272497251,4.18363021,1822.0,1821.7,9.80608175]
[1743272497569,5.48829,1822.1,1821.7,9.80608175]
[1743272497775,3.0,1822.0,1821.7,9.80608175]
[1743272498091,5.48889,1821.9,1821.7,9.86096865]
[1743272498248,5.48889,1821.9,1821.7,9.80608175]
[1743272498578,5.48889,1821.9,1821.7,11.00033282]
[1743272498773,8.48889,1821.9,1821.7,11.00033282]
[1743272499178,5.48889,1821.9,1821.7,11.00033282]
[1743272499368,9.67210021,1822.0,1821.7,11.00033282]
[1743272499563,3.40822476,1822.1,1821.8,15.29515175]
[1743272499753,5.48847,1822.0,1821.9,9.80608175]
[1743272500679,9.67210021,1822.0,1821.9,9.80608175]
[1743272501758,9.79480418,1822.0,1821.9,9.80608175]
[1743272502279,13.34480418,1822.0,1821.9,9.80608175]
[1743272504271,8.48967,1821.6,1821.5,9.80608175]
[1743272504474,13.22330021,1821.6,1821.5,9.80608175]
[1743272504677,8.49148,1821.0,1820.9,0.9616]
[1743272504863,12.23116,1821.0,1820.9,9.80608175]
[1743272505045,12.90237009,1821.0,1820.9,9.80608175]
[1743272505245,8.005644,1820.9,1820.8,9.80608175]
[1743272505482,8.49178,1820.9,1820.8,9.80608175]
[1743272505666,0.12121009,1820.9,1820.8,9.80608175]
[1743272506845,5.61299009,1820.9,1820.8,9.80608175]
[1743272508153,0.12121009,1820.9,1820.8,9.80608175]
[1743272509390,5.61299009,1820.9,1820.8,9.80608175]
[1743272512782,0.12121009,1820.9,1820.8,17.27157993]
[1743272513163,3.0,1821.1,1820.8,17.27157993]
[1743272513357,0.11762342,1820.9,1820.8,17.27157993]
[1743272513563,3.0,1821.1,1820.8,23.27057993]
[1743272513904,10.98197,1821.2,1820.9,5.49178]
[1743272513905,3.0,1821.2,1820.9,5.49178]
[1743272514105,0.11587993,1821.0,1820.9,5.49178]
[1743272514405,3.0,1821.2,1820.9,5.49178]
[1743272514588,0.11587993,1821.0,1820.9,5.49178]
[1743272514787,3.0,1821.2,1820.9,5.49178]
[1743272515000,0.11587993,1821.0,1820.9,8.42291162]
[1743272515219,3.0,1821.2,1820.9,8.42291162]
[1743272515375,0.11587993,1821.0,1820.9,8.36800299]
[1743272515576,3.0,1821.2,1820.9,8.36800299]
[1743272515776,0.11587993,1821.0,1820.9,8.42291151]
[1743272516005,3.0,1821.2,1820.9,8.36800299]
[1743272516201,0.11587993,1821.0,1820.9,8.36800299]
[1743272516482,0.11637814,1821.0,1820.9,8.36800299]
[1743272516681,3.0,1821.2,1820.9,8.36800299]
[1743272516885,0.11637814,1821.0,1820.9,8.36800299]
[1743272517193,3.0,1821.2,1820.9,8.36800299]
[1743272517380,0.11637814,1821.0,1820.9,8.36800299]
[1743272517598,3.0,1821.2,1820.9,8.36800299]
[1743272517803,0.11642796,1821.0,1820.9,8.36800299]
[1743272518013,3.0,1821.2,1820.9,8.36800299]
[1743272518216,0.11642796,1821.0,1820.9,8.36800299]
[1743272518378,3.0,1821.2,1820.9,8.36800299]
[1743272518579,0.11642796,1821.0,1820.9,8.36800299]
[1743272518780,3.0,1821.2,1820.9,8.36800299]
[1743272518976,11.38519007,1821.3,1820.8,0.9928]
[1743272518977,5.49178,1820.9,1820.8,0.9928]
[1743272519208,14.20182621,1820.9,1820.8,10.18]
[1743272519415,11.95083853,1820.9,1820.8,10.18]
[1743272519715,5.60810832,1820.9,1820.8,10.18]
[1743272520323,0.11632832,1820.9,1820.8,10.18]
[1743272520615,3.0,1821.0,1820.8,12.1908]
[1743272520810,0.11632832,1820.9,1820.8,12.1908]
[1743272521015,0.11632832,1820.9,1820.8,17.68289]
[1743272521311,12.67414508,1822.6,1820.8,17.68289]
[1743272521312,4.18363021,1821.7,1821.3,5.49047]
[1743272521512,0.41364014,1821.8,1821.6,5.48944]
[1743272521711,5.48857,1822.0,1821.6,6.48224]
[1743272522106,3.10405707,1821.9,1821.6,12.47824]
[1743272522419,0.10405707,1821.9,1821.6,12.47824]
[1743272522814,3.10405707,1821.9,1821.6,12.47824]
[1743272523115,0.10405707,1821.9,1821.7,11.31149568]
[1743272523325,0.10405707,1821.9,1821.8,10.06367168]
[1743272523633,3.10405707,1821.9,1821.8,10.06367168]